Cogmind - Beta 9.6 @@@ ROGUE MODE // 2020.09.02 @ 14:09:06 Player: Cracklepappy Result: Destroyed by G-67 Veteran with Plasma Rifle Performance ------------- Evolutions (3) 1500 Regions Visited (11) 2200 Robots Destroyed (162) 810 Value Destroyed (5969) 5969 Prototype IDs (28) 560 Alien Tech Used (0) 0 Bonus (1796) 1796 TOTAL SCORE: 12835 Bonus ------- High Alert Combat Kills 870 Follower Combat Kills 304 Entered Garrisons 200 Used RIF Installer 500 Aligned with FarCom 300 Friendly Fire -378 Cogmind --------- Core Integrity 0/700 Matter 130/300 Energy 93/100 System Corruption 12% Temperature Cool (190) Movement Treading (165) Location -6/Proximity Caves Parts ------- > --- POWER (1) -------- (None) > --- PROPULSION (7) --- Armored Treads Armored Treads Armored Treads Armored Treads Armored Treads Advanced Treads > --- UTILITY (3) ------ High-capacity Storage Unit High-capacity Storage Unit High-capacity Storage Unit > --- WEAPON (2) ------- Advanced Assault Cannon Advanced Assault Cannon > --- INVENTORY (28) --- Armored Treads Armored Treads Improved Heat Sink High-capacity Matter Pod (200) Long-range Terrain Scanner Makeshift Terrain Scan Processor Hacking Suite Relay Coupler [NC] (29) Relay Coupler [NC] (27) Relay Coupler [NC] (22) Relay Coupler [Grunt] (25) Relay Coupler [Grunt] (23) Relay Coupler [Sentry] (22) Relay Coupler [Sentry] (21) Relay Coupler [Specialist] (22) Relay Coupler [Hunter] (13) Relay Coupler [Behemoth] (8) Skeleton Box Gauss Rifle Gauss Rifle AWS/Autocannon Proton Missile Launcher Remote Datajack Chainsword Peak State ------------ > --- POWER ------------ Improved Ion Engine > --- PROPULSION ------- Light Treads Carbon-fiber Leg Improved Carbon-fiber Leg Improved Carbon-fiber Leg Improved Carbon-fiber Leg Improved Carbon-fiber Leg Improved Carbon-fiber Leg > --- UTILITY ---------- High-capacity Storage Unit High-capacity Storage Unit High-capacity Storage Unit > --- WEAPON ----------- Advanced Assault Cannon Advanced Assault Cannon > --- INVENTORY -------- Improved Heat Sink High-capacity Matter Pod Improved Terrain Scanner Makeshift Terrain Scan Processor Microactuators Hacking Suite Relay Coupler [NC] Relay Coupler [NC] Relay Coupler [NC] Relay Coupler [NC] Relay Coupler [NC] Relay Coupler [Swarmer] Relay Coupler [Grunt] Relay Coupler [Grunt] Relay Coupler [Sentry] Relay Coupler [Sentry] Relay Coupler [Specialist] Relay Coupler [Hunter] Relay Coupler [Behemoth] Skeleton Box Advanced Assault Cannon AWS/Autocannon Proton Missile Launcher Remote Datajack Axe Chainsword [Rating: 48] Favorites ----------- Power Ion Engine Engine Ion Engine Power Core Micro Nuclear Core Propulsion Light Treads Treads Light Treads Leg Improved Carbon-fiber Leg Wheel Compact Wheel Utility High-capacity Storage Unit Device Improved Terrain Scanner Storage High-capacity Storage Unit Hackware Relay Coupler [NC] Weapon Advanced Assault Cannon Energy Gun Heavy Laser Ballistic Gun Light Assault Rifle Ballistic Cannon Advanced Assault Cannon Launcher Grenade Launcher Special Weapon Remote Datajack Slashing Weapon Katana Build | -11 -10 -10 -10 -9 -8 -8 -7 -7 -7 -7 -6 ------- Run | Scr Mat Min Exi Min Mat Gar Fac Low Low Zio Pro Slots Evolved 6 | . . . . . 4 . 2 . . . . Power . | . . . . . . . . . . . . Propulsion 5 | . . . . . 3 . 2 . . . . Utility 1 | . . . . . 1 . . . . . . Weapon . | . . . . . . . . . . . . Parts Attached 119 | 8 12 2 2 . 5 18 66 1 4 . 1 Power 11 | 2 4 . . . . 1 4 . . . . Engine 9 | 2 4 . . . . 1 2 . . . . Core 2 | . . . . . . . 2 . . . . Reactor . | . . . . . . . . . . . . Propulsion 48 | 2 4 . . . 4 . 34 1 2 . 1 Treads 21 | . 3 . . . 4 . 10 1 2 . 1 Leg 24 | . . . . . . . 24 . . . . Wheel 3 | 2 1 . . . . . . . . . . Hover . | . . . . . . . . . . . . Flight . | . . . . . . . . . . . . Utility 18 | 2 2 . 1 . 1 3 9 . . . . Device 1 | . . . . . . 1 . . . . . Storage 13 | 2 2 . 1 . 1 2 5 . . . . Processor . | . . . . . . . . . . . . Hackware 4 | . . . . . . . 4 . . . . Protection . | . . . . . . . . . . . . Artifact . | . . . . . . . . . . . . Weapon 42 | 2 2 2 1 . . 14 19 . 2 . . Energy Gun 2 | . . . . . . . 2 . . . . Energy Cannon . | . . . . . . . . . . . . Ballistic Gun 19 | 2 2 1 1 . . 8 5 . . . . Ballistic Cannon 9 | . . . . . . . 8 . 1 . . Launcher 4 | . . 1 . . . 1 1 . 1 . . Special Weapon 3 | . . . . . . 1 2 . . . . Impact Weapon . | . . . . . . . . . . . . Slashing Weapon 5 | . . . . . . 4 1 . . . . Piercing Weapon . | . . . . . . . . . . . . Special Melee Weapon . | . . . . . . . . . . . . Unidentified Prototypes 1 | . . . . . . . 1 . . . . Parts Lost 30 | . 3 . . . . 1 23 . . . 3 Power 8 | . 2 . . . . 1 4 . . . 1 Propulsion 20 | . 1 . . . . . 17 . . . 2 Utility . | . . . . . . . . . . . . Weapon 2 | . . . . . . . 2 . . . . Highest Loss Streak 6 | . 1 . . . . 1 6 . . . 3 Average Slot Usage (%) 90 | . 99 100 86 71 78 87 89 99 98 100 94 Engine 6 | . 13 14 14 14 9 8 3 . . . . Core 2 | . . . . . . . 3 7 7 7 4 Treads 33 | . 18 28 28 28 45 45 20 52 51 53 50 Leg 8 | . . . . . . . 26 . . . . Storage 19 | . 28 28 17 14 15 14 19 23 23 23 23 Ballistic Gun 10 | . 27 27 25 14 9 9 6 . . . . Ballistic Cannon 5 | . . . . . . . 7 15 14 15 15 Naked Turns . | . . . . . . . . . . . . Heaviest Build 133 | 15 39 41 95 95 111 127 133 116 116 116 116 Greatest Support 142 | 32 40 40 40 40 103 103 140 140 142 142 142 Greatest Overweight (x) 6 | . . 1 2 2 1 1 6 . . . . Average Overweight (x) . | . . . 1 2 . . 1 . . . . Largest Inventory Capacity 32 | 8 16 16 24 24 30 32 32 28 28 28 28 Average Capacity 25 | 6 8 16 21 24 28 28 29 28 28 28 28 Most Carried 32 | 8 12 16 24 23 26 32 32 28 28 27 27 Average Carried 24 | 4 8 15 18 22 23 27 28 28 27 27 26 Final Capacity 32 | 8 16 16 24 24 30 32 28 28 28 28 28 Final Carried 32 | 8 12 16 22 23 26 32 28 28 27 27 26 Class Distribution -------------------- 59% | Bothacker-Mutant 18% | Hauler-Mutant 10% | Scavenger-Mutant 8% | Bothacker-Skirmisher 3% | Mutant Dominant Class ---------------- Scavenger-Mutant | -10/Materials Scavenger-Mutant | -10/Mines Hauler-Mutant | -10/Exiles Hauler-Mutant | -9/Mines Hauler-Mutant | -8/Materials Bothacker-Mutant | -8/Garrison Bothacker-Mutant | -7/Factory Bothacker-Mutant | -7/Lower Caves Bothacker-Mutant | -7/Lower Caves Bothacker-Mutant | -7/Zion Bothacker-Mutant | -6/Proximity Caves Resources | -11 -10 -10 -10 -9 -8 -8 -7 -7 -7 -7 -6 ----------- Run | Scr Mat Min Exi Min Mat Gar Fac Low Low Zio Pro Matter Collected 4714 | 212 315 25 90 10 50 244 2943 127 558 . 140 Remotely . | . . . . . . . . . . . . Salvage Created 5317 | 74 561 98 . 57 57 874 2782 143 405 . 266 Parts 285 | 8 44 11 . 6 5 34 140 3 26 . 8 Haulers Intercepted 6 | . 1 . . . . . 4 . 1 . . Recyclers Shooed 3 | . . . . . . . 3 . . . . Parts Field Recycled . | . . . . . . . . . . . . Retrieved Matter . | . . . . . . . . . . . . Parts Self-Destructed 31 | . . . . . . . . 3 21 . 7 Prevented . | . . . . . . . . . . . . Kills | -11 -10 -10 -10 -9 -8 -8 -7 -7 -7 -7 -6 ------- Run | Scr Mat Min Exi Min Mat Gar Fac Low Low Zio Pro Combat Hostiles Destroyed 124 | . 12 6 . 4 1 23 51 5 14 . 8 Melee 2 | . . . . . . . . . 2 . . Guns 62 | . 12 4 . 4 1 23 18 . . . . Cannons 57 | . . . . . . . 32 5 12 . 8 AOE 3 | . . 2 . . . . 1 . . . . Classes Destroyed 15 | 2 5 1 . . 1 1 3 1 1 . . Worker 10 | . . 2 . . . . 8 . . . . Builder 2 | . 1 . . . . . 1 . . . . Tunneler 3 | 1 2 . . . . . . . . . . Hauler 6 | . 1 . . . . . 4 . 1 . . Recycler 9 | 1 1 . . . . . 7 . . . . Operator 1 | . . . . . . . 1 . . . . Watcher 5 | . 2 . . . . . 3 . . . . Swarmer 38 | . 6 6 . 4 . 10 6 1 4 . 1 Grunt 52 | . 6 . . . . 12 24 1 7 . 2 Brawler 4 | . . . . . . . . 1 . . 3 Duelist 4 | . . . . . . 1 1 1 . . 1 Sentry 10 | . . . . . 1 1 6 1 . . 1 Hunter 6 | . . . . . . . 5 . 1 . . Programmer 10 | . . . . . . . 10 . . . . Master Thief 2 | . . . . . . . . . 2 . . Best Kill Streak 7 | 1 4 5 . 2 1 7 5 3 3 . 6 Combat Bots Only 7 | . 4 3 . 2 1 7 4 3 3 . 6 Max Kills in Single Turn 3 | 1 2 3 . 1 1 1 3 1 1 . 1 Gunslinging 1 | . 1 . . . . . . . . . . Exploded 2 | . . 2 . . . . 1 . . . . Melee 1 | . . . . . . . . . 1 . . Uniques/NPCs Destroyed . | . . . . . . . . . . . . Combat | -11 -10 -10 -10 -9 -8 -8 -7 -7 -7 -7 -6 -------- Run | Scr Mat Min Exi Min Mat Gar Fac Low Low Zio Pro Damage Taken 7557 | . 615 107 . 43 . 547 4693 277 639 . 636 Core 973 | . 134 47 . . . 91 590 18 33 . 60 Absorbed by Shields . | . . . . . . . . . . . . Core Remaining (%) 70 | 100 . . . 27 . 83 . . . . . Volleys Fired 375 | 7 66 8 . . . 20 203 13 34 . 24 Largest 2 | 2 2 2 . . . 2 2 2 2 . 2 Hottest 100 | 40 40 50 . . . 100 96 96 96 . 96 Shots Fired 787 | 14 132 16 . 8 4 97 378 25 67 1 45 Gun 421 | 14 132 13 . 8 4 96 154 . . . . Cannon 347 | . . . . . . . 212 25 64 1 45 Launcher 8 | . . 3 . . . . 2 . 3 . . Special 11 | . . . . . . 1 10 . . . . Kinetic 753 | 14 132 13 . 8 4 96 351 25 64 1 45 Thermal 16 | . . . . . . 1 15 . . . . Explosive 3 | . . 3 . . . . . . . . . Electromagnetic 5 | . . . . . . . 2 . 3 . . Robot Hit Streak 39 | 4 7 3 . 7 10 39 23 16 17 . 20 Robot Miss Streak 7 | 2 6 4 . 1 1 1 7 1 2 . 2 Penetration Max 1 | . . . . . . . 1 . . . . Secondary Targets 6 | . 3 1 . . . . 2 . . . . Max Gunslinging Chain 1 | . 1 1 . . . . 1 . . . . Autonomous 74 | . . . . 8 4 62 . . . . . Shots Hit Robots 582 | 8 77 6 . 7 3 89 290 19 46 . 37 Core Hits 326 | 4 36 9 . 4 1 41 188 8 20 . 15 Critical Hits 11 | . 2 . . . . . 4 . 4 . 1 Critical Kills 3 | . 1 . . . . . . . 2 . . Critical Parts Destroyed 7 | . 1 . . . . . 3 . 2 . 1 Melee Attacks 39 | . . . . . . 30 9 . . . . Impact . | . . . . . . . . . . . . Slashing 39 | . . . . . . 30 9 . . . . Piercing . | . . . . . . . . . . . . Sneak Attacks 3 | . . . . . . . 3 . . . . Combat Hostiles . | . . . . . . . . . . . . Follow-up Attacks . | . . . . . . . . . . . . Damage Inflicted 12719 | 59 656 244 . 186 34 2080 6661 504 1196 . 1099 Guns 5455 | 59 656 63 . 186 34 2065 2392 . . . . Cannons 6114 | . . . . . . . 3412 504 1099 . 1099 Explosions 649 | . . 178 . . . . 400 . 71 . . Melee 399 | . . . . . . . 399 . . . . Ramming 102 | . . 3 . . . 15 58 . 26 . . Kinetic 11343 | 59 656 63 . 186 34 2065 5578 504 1099 . 1099 Thermal 480 | . . . . . . . 480 . . . . Explosive 190 | . . 178 . . . . 12 . . . . Electromagnetic 205 | . . . . . . . 134 . 71 . . Impact . | . . . . . . . . . . . . Slashing 399 | . . . . . . . 399 . . . . Piercing . | . . . . . . . . . . . . Highest Corruption 12 | . . . . . . . 12 12 12 12 12 Average Corruption 10 | . . . . . . . 9 12 12 12 12 Corruption Purged . | . . . . . . . . . . . . Effects 285 | . . . . . . . 161 36 54 16 18 Message Errors 39 | . . . . . . . 23 3 9 3 1 Matter Fused 49 | . . . . . . . 32 6 7 3 1 Heat Flow Errors 26 | . . . . . . . 17 6 1 1 1 Energy Discharges 26 | . . . . . . . 15 4 1 3 3 Parts Rejected 4 | . . . . . . . 2 1 1 . . Data Loss (minor) 35 | . . . . . . . 19 7 6 1 2 Data Loss (major) 17 | . . . . . . . 11 1 5 . . Misfires 9 | . . . . . . . 6 1 1 1 . Alerts 3 | . . . . . . . 1 . 1 . 1 Misdirections 24 | . . . . . . . 9 4 7 4 . Targeting Errors 38 | . . . . . . . 18 1 13 . 6 Weapon Failures 15 | . . . . . . . 8 2 2 . 3 Overload Shots . | . . . . . . . . . . . . Overflow Damage 555 | . . . . . . . 517 18 11 . 9 Projectiles 77 | . . . . . . . 39 18 11 . 9 Explosions 295 | . . . . . . . 295 . . . . Melee 183 | . . . . . . . 183 . . . . Knockbacks 41 | . . . . . . . 28 4 7 . 2 Impact 1 | . . . . . . . 1 . . . . Kinetic 40 | . . . . . . . 27 4 7 . 2 Secondary . | . . . . . . . . . . . . Self-Inflicted Damage 330 | . . 23 . . . . 307 . . . . Shots 7 | . . 2 . . . . 5 . . . . Rammed 3 | . . 1 . . . 1 . . 1 . . Targets Rammed 8 | . 1 1 . . . 1 2 . 3 . . Kicked 2 | . . . . . . . 2 . . . . Crushed 3 | . 1 . . . . . . . 2 . . Highest Temperature 262 | . 29 20 . . . 4 259 262 240 118 96 Average Temperature 67 | . 11 10 . . . 3 75 90 61 45 38 Received Heat Transfer 2085 | . 255 . . 9 . 234 1131 126 153 . 177 Siege Activations . | . . . . . . . . . . . . Robots Corrupted . | . . . . . . . . . . . . Combat Hostiles . | . . . . . . . . . . . . Parts Fried . | . . . . . . . . . . . . Impact Corruptions 1 | . . . . . . . 1 . . . . Robots Melted . | . . . . . . . . . . . . Combat Hostiles . | . . . . . . . . . . . . Parts Melted 3 | . . . . . . . 3 . . . . Heat Transferred 644 | . . . . . . . 644 . . . . Parts Sabotaged . | . . . . . . . . . . . . Parts Stolen 1 | . . . . . . . . . 1 . . Parts Stripped . | . . . . . . . . . . . . Power Chain Reactions . | . . . . . . . . . . . . Missiles Intercepted . | . . . . . . . . . . . . Alert | -11 -10 -10 -10 -9 -8 -8 -7 -7 -7 -7 -6 ------- Run | Scr Mat Min Exi Min Mat Gar Fac Low Low Zio Pro Peak Influence 1113 | 10 271 198 . 98 83 1098 1113 . . . . Average Influence 599 | 3 84 155 . 45 73 966 595 . . . . Maximum Alert Level 4 | . 1 . . . . 3 4 . . . . Low Security (%) 23 | 100 84 100 . 100 100 5 . . . . . Level 1 6 | . 15 . . . . 1 10 . . . . Level 2 27 | . . . . . . 2 63 . . . . Level 3 40 | . . . . . . 91 23 . . . . Level 4 1 | . . . . . . . 2 . . . . Level 5 . | . . . . . . . . . . . . High Security . | . . . . . . . . . . . . Max Security . | . . . . . . . . . . . . Squads Dispatched 22 | . 1 . . . . . 20 . . . 1 Investigation 5 | . . . . . . . 5 . . . . Extermination 9 | . . . . . . . 9 . . . . Reinforcement 6 | . 1 . . . . . 5 . . . . Assault 2 | . . . . . . . 1 . . . 1 Garrison . | . . . . . . . . . . . . Intercept . | . . . . . . . . . . . . Construction Impeded 1 | . . . . . . . 1 . . . . Haulers Reinforced 2 | . . . . . . . 2 . . . . Stealth | -11 -10 -10 -10 -9 -8 -8 -7 -7 -7 -7 -6 --------- Run | Scr Mat Min Exi Min Mat Gar Fac Low Low Zio Pro Distress Signals 4 | . 1 . . . . . 3 . . . . Communications Jammed . | . . . . . . . . . . . . Distress Signals . | . . . . . . . . . . . . Times Spotted 184 | . 30 6 . 6 . 30 76 6 18 . 12 Peak Tracking Total 7 | . 6 3 . 3 . 4 5 5 5 . 7 Tactical Retreats 12 | . 3 . . 1 . 1 4 1 2 . . Traps | -11 -10 -10 -10 -9 -8 -8 -7 -7 -7 -7 -6 ------- Run | Scr Mat Min Exi Min Mat Gar Fac Low Low Zio Pro Traps Triggered 8 | . 1 . . . . 6 1 . . . . Indirectly . | . . . . . . . . . . . . Trap Hack Attempts . | . . . . . . . . . . . . Triggered . | . . . . . . . . . . . . Disarmed . | . . . . . . . . . . . . Reprogrammed . | . . . . . . . . . . . . Reused . | . . . . . . . . . . . . Traps Extracted . | . . . . . . . . . . . . Installed 4 | . . . 4 . . . . . . . . Triggered 4 | . . . . . . . . 2 . . 2 Machines | -11 -10 -10 -10 -9 -8 -8 -7 -7 -7 -7 -6 ---------- Run | Scr Mat Min Exi Min Mat Gar Fac Low Low Zio Pro Machines Disabled 15 | . . 1 . . . 5 9 . . . . Max in Single Turn 7 | . . 1 . . . 1 7 . . . . Garrison Access 2 | . . . . . . . 2 . . . . Garrison Relay 4 | . . . . . . 4 . . . . . Machines Sabotaged . | . . . . . . . . . . . . Garrisons Compromised . | . . . . . . . . . . . . Overloaded Fab Kills . | . . . . . . . . . . . . Fab Network Shutdowns . | . . . . . . . . . . . . Hacking | -11 -10 -10 -10 -9 -8 -8 -7 -7 -7 -7 -6 --------- Run | Scr Mat Min Exi Min Mat Gar Fac Low Low Zio Pro Machines Accessed 26 | . 4 . 1 1 2 . 18 . . . . Terminals 18 | . 4 . . 1 1 . 12 . . . . Fabricators 3 | . . . . . . . 3 . . . . Repair Stations 1 | . . . . . . . 1 . . . . Recycling Units . | . . . . . . . . . . . . Scanalyzers . | . . . . . . . . . . . . Garrison Access 3 | . . . . . 1 . 2 . . . . Total Hacks 66 | . 16 . 1 3 3 . 43 . . . . Successful 28 | . 7 . 1 2 1 . 17 . . . . Failed 38 | . 9 . . 1 2 . 26 . . . . Catastrophic 10 | . 1 . . . . . 9 . . . . Database Lockouts . | . . . . . . . . . . . . Manual 24 | . 8 . 1 1 2 . 12 . . . . Terminals 53 | . 16 . . 3 2 . 32 . . . . Fabricators 8 | . . . . . . . 8 . . . . Repair Stations 1 | . . . . . . . 1 . . . . Recycling Units . | . . . . . . . . . . . . Scanalyzers . | . . . . . . . . . . . . Garrison Access 3 | . . . . . 1 . 2 . . . . Terminal Hacks 21 | . 7 . 1 2 . . 11 . . . . Part Schematic 4 | . 1 . . 1 . . 2 . . . . Prototype ID Bank 2 | . 1 . . . . . 1 . . . . Branch Access Points 1 | . . . . . . . 1 . . . . Unreport Threat 3 | . 1 . . . . . 2 . . . . Locate Traps 7 | . 4 . . . . . 3 . . . . Zone Layout 3 | . . . . 1 . . 2 . . . . EX-Prototype ID Bank 1 | . . . 1 . . . . . . . . Fabricator Hacks 4 | . . . . . . . 4 . . . . Load Schematic 2 | . . . . . . . 2 . . . . Build 2 | . . . . . . . 2 . . . . Repair Station Hacks . | . . . . . . . . . . . . Recycling Unit Hacks . | . . . . . . . . . . . . Scanalyzer . | . . . . . . . . . . . . Garrison Access Hacks 3 | . . . . . 1 . 2 . . . . Unlock Access 1 | . . . . . 1 . . . . . . Seal Access 2 | . . . . . . . 2 . . . . Unauthorized Hacks . | . . . . . . . . . . . . Terminals . | . . . . . . . . . . . . Fabricators . | . . . . . . . . . . . . Repair Stations . | . . . . . . . . . . . . Recycling Units . | . . . . . . . . . . . . Scanalyzers . | . . . . . . . . . . . . Garrison Access . | . . . . . . . . . . . . Data Cores Recovered 1 | . . . . . . . 1 . . . . Used . | . . . . . . . . . . . . Hacking Detections 22 | . 4 . . 1 2 . 15 . . . . Full Trace Events 4 | . . . . . . . 4 . . . . Feedback Events . | . . . . . . . . . . . . Feedback Blocked . | . . . . . . . . . . . . Robot Schematics Acquired . | . . . . . . . . . . . . Robots Built . | . . . . . . . . . . . . Matter . | . . . . . . . . . . . . Time . | . . . . . . . . . . . . Total Robot Build Rating . | . . . . . . . . . . . . Part Schematics Acquired 3 | . 1 . . . . . 2 . . . . Parts Built 4 | . . . . . . . 4 . . . . Matter 292 | . . . . . . . 292 . . . . Time 146 | . . . . . . . 146 . . . . Total Part Build Rating 12 | . . . . . . . 12 . . . . Parts Repaired . | . . . . . . . . . . . . Time . | . . . . . . . . . . . . Parts Recycled . | . . . . . . . . . . . . Recycled Matter . | . . . . . . . . . . . . Retrieved Matter . | . . . . . . . . . . . . Retrieved Components . | . . . . . . . . . . . . Parts Scanalyzed . | . . . . . . . . . . . . Part Schematics Acquired . | . . . . . . . . . . . . Parts Damaged . | . . . . . . . . . . . . Bothacking | -11 -10 -10 -10 -9 -8 -8 -7 -7 -7 -7 -6 ------------ Run | Scr Mat Min Exi Min Mat Gar Fac Low Low Zio Pro Used RIF Installer 1 | . . . . . . 1 . . . . . Robots Hacked 5 | . . . . . . . 5 . . . . Non-combat 2 | . . . . . . . 2 . . . . Combat 3 | . . . . . . . 3 . . . . Robot Hacks Applied 9 | . . . . . . . 9 . . . . parse_system 1 | . . . . . . . 1 . . . . purge_threat 4 | . . . . . . . 4 . . . . locate_traps 1 | . . . . . . . 1 . . . . formatsys_high 3 | . . . . . . . 3 . . . . Relay Couplers Released 18 | . . . . . . 18 . . . . . Machine Destruction 18 | . . . . . . 18 . . . . . Attached 4 | . . . . . . . 4 . . . . Robots Rewired . | . . . . . . . . . . . . Allies Hacked 1 | . . . . . . . 1 . . . . Hacks Repelled . | . . . . . . . . . . . . Allies | -11 -10 -10 -10 -9 -8 -8 -7 -7 -7 -7 -6 -------- Run | Scr Mat Min Exi Min Mat Gar Fac Low Low Zio Pro Total Allies 8 | . . . . 5 . . 3 . . . . Largest Group 5 | . . . . 5 5 5 3 . . . . Highest-Rated Group 84 | . . . . 84 84 84 61 . . . . Highest-Rated Ally 31 | . . . . 31 31 31 29 . . . . Total Orders . | . . . . . . . . . . . . Ally Attacks 104 | . . . . 7 . 54 43 . . . . Total Damage 1417 | . . . . 81 . 713 623 . . . . Kills 12 | . . . . 1 . 7 4 . . . . Allies Corrupted . | . . . . . . . . . . . . Allies Melted . | . . . . . . . . . . . . Intel | -11 -10 -10 -10 -9 -8 -8 -7 -7 -7 -7 -6 ------- Run | Scr Mat Min Exi Min Mat Gar Fac Low Low Zio Pro Robot Analysis Total . | . . . . . . . . . . . . Derelict Logs Recovered 6 | . . 1 . 3 . . . . 1 . 1 Drone Launches . | . . . . . . . . . . . . Drone Recoveries . | . . . . . . . . . . . . Exploration | -11 -10 -10 -10 -9 -8 -8 -7 -7 -7 -7 -6 ------------- Run | Scr Mat Min Exi Min Mat Gar Fac Low Low Zio Pro Turns Passed 14039 | 91 1069 361 1248 794 133 3532 4465 950 875 342 179 Spaces Moved 6735 | 52 567 200 641 394 71 1516 2138 454 441 205 56 Core 1 | 1 . . . . . . . . . . . Treads 5239 | . 346 200 641 394 71 1516 915 454 441 205 56 Legs 1223 | . . . . . . . 1223 . . . . Wheels 272 | 51 221 . . . . . . . . . . Hover . | . . . . . . . . . . . . Flight . | . . . . . . . . . . . . Fastest Speed 50 | 50 100 160 160 200 160 160 120 168 165 166 165 Average Speed 168 | 99 136 160 187 200 174 174 165 168 167 166 165 Slowest Speed 280 | 100 160 180 200 200 180 180 280 168 168 166 166 Overloaded Moves . | . . . . . . . . . . . . Propulsion Burnouts . | . . . . . . . . . . . . Robots Hopped . | . . . . . . . . . . . . Cave-ins Triggered . | . . . . . . . . . . . . Exploration Rate (%) 52 | 5 97 64 76 79 10 99 61 58 52 12 11 Regions Visited 11 Branch Regions 7 Pre-discovered Areas 1 | . . . . 1 . . . . . . . Known Exits Taken 2 | . . . . . 1 . 1 . . . . Unknown Exits Taken 8 | 1 1 1 1 1 . . . 1 1 1 . Scrap Searched 8 | . . 1 . 2 . . . . 5 . . Spaces Dug 5 | . . . . . . 3 2 . . . . Terrain Destroyed 162 | . . 27 . 6 3 12 102 3 7 . 2 Melee 5 | . . . . . . 3 2 . . . . Projectile 62 | . . . . 6 3 9 32 3 7 . 2 AOE 95 | . . 27 . . . . 68 . . . . Actions | -11 -10 -10 -10 -9 -8 -8 -7 -7 -7 -7 -6 --------- Run | Scr Mat Min Exi Min Mat Gar Fac Low Low Zio Pro Total 8669 | 76 756 230 695 401 80 2328 2677 615 509 207 95 Wait 1153 | . 94 4 18 7 . 674 167 148 24 3 14 Move 6723 | 51 566 199 640 393 70 1514 2137 453 440 204 56 Hop . | . . . . . . . . . . . . Pick Up 142 | 9 9 10 22 1 5 29 55 . 2 . . Fast Attach 47 | 7 5 . 1 . 1 2 30 1 . . . Attach 28 | . 3 . 1 . 3 8 11 . 1 . 1 Detach 6 | . . . . . . 6 . . . . . Swap 44 | 1 4 2 . . 1 8 25 . 3 . . Drop 87 | 1 8 6 9 . . 23 38 . 2 . . Fire 375 | 7 66 8 . . . 20 203 13 34 . 24 Melee 39 | . . . . . . 30 9 . . . . Ram . | . . . . . . . . . . . . Kick 2 | . . . . . . . 2 . . . . Crush 6 | . 1 1 . . . 1 . . 3 . . Escape Stasis 13 | . . . . . . 13 . . . . . Rewire . | . . . . . . . . . . . . Trap 4 | . . . 4 . . . . . . . . Miscellaneous . | . . . . . . . . . . . . Route ------- -11/Scrapyard -10/Materials (discovered 4 exits: [*Mat x3] / [*Min]) -10/Mines -10/Exiles -9/Mines (discovered 2 exits: *Mat x2) -8/Materials -8/Garrison (discovered 3 exits: *Fac x3) -7/Factory (discovered 5 exits: [*Fac x3] / *Low x2) -7/Lower Caves -7/Lower Caves -7/Zion -6/Proximity Caves History --------- Turn | Location | Event 27 | -11/Scrapyard | Discovered new exit (range 13) 92 | -11/Scrapyard | Entered Materials 195 | -10/Materials | Discovered new exit (range 7) 271 | -10/Materials | Discovered new exit (range 16) 317 | -10/Materials | Build established: Mutant 748 | -10/Materials | Build established: Scavenger-Mutant 787 | -10/Materials | Discovered new exit (range 13) 1003 | -10/Materials | Core integrity fell below 50% 1039 | -10/Materials | Discovered new exit (range 14) 1161 | -10/Materials | Entered Mines 1299 | -10/Mines | Found a hidden stash of uninstalled traps 1382 | -10/Mines | Received a Rocket Launcher from a helpful Derelict 1508 | -10/Mines | Learned Materials stockpile data 1514 | -10/Mines | Deemed a non-threat by the Exiles lab entrance 1516 | -10/Mines | Discovered new exit (range 5) 1522 | -10/Mines | Entered Exiles 1561 | -10/Exiles | Met 8R-AWN 1590 | -10/Exiles | Met EX-HEX 1636 | -10/Exiles | Met EX-BIN 1657 | -10/Exiles | Met EX-DEC 1739 | -10/Exiles | Visited The Gauntlet 2143 | -10/Exiles | Build established: Hauler-Mutant 2461 | -10/Exiles | Aligned with FarCom system 2463 | -10/Exiles | Given EX-Vault access code 2511 | -10/Exiles | Opened EX-Vault 2521 | -10/Exiles | Found Prototype Device 2526 | -10/Exiles | Found Prototype Ballistic Cannon 2533 | -10/Exiles | Found Prototype Ballistic Gun 2538 | -10/Exiles | Identified Skeleton Box 2538 | -10/Exiles | Identified AWS/Gauss 2538 | -10/Exiles | Identified AWS/Autocannon 2582 | -10/Exiles | Warned to stay clear of 0b10 Research branches 2597 | -10/Exiles | Exiles lab attacked by MAIN.C 2730 | -10/Exiles | Discovered new exit (range 12) 2770 | -10/Exiles | Stole three prototypes: AWS/Gauss, Skeleton Box, AWS/Autocannon 2770 | -10/Exiles | Entered Mines 2771 | -9/Mines | Learned location of Storage (-9) 2854 | -9/Mines | Discovered new exit (range 7) 2886 | -9/Mines | Learned Materials interactive machine intel 2987 | -9/Mines | Learned Materials terminal intel 3272 | -9/Mines | Assisted by bots powering up and referring to "LRC-V3" 3537 | -9/Mines | Discovered new exit (range 9) 3539 | -9/Mines | Learned Materials stockpile data 3564 | -9/Mines | Entered Materials 3564 | -8/Materials | Accompanied by 5 allies 3564 | -8/Materials | Evolved 4 slots: Propulsion x3, Utility x1 3566 | -8/Materials | Loaded intel: 18 interactive machine locations 3567 | -8/Materials | Loaded intel: 11 terminal locations 3569 | -8/Materials | Led the pair of lost Derelicts to an unsafe place 3696 | -8/Materials | Identified exit to Garrison 3697 | -8/Materials | Entered Garrison 3697 | -8/Garrison | Accompanied by 5 allies 3740 | -8/Garrison | Triggered checkpoint 3772 | -8/Garrison | Garrison Relay disabled 3888 | -8/Garrison | Triggered checkpoint 3918 | -8/Garrison | Triggered checkpoint 3925 | -8/Garrison | Triggered checkpoint 3948 | -8/Garrison | Triggered checkpoint 3975 | -8/Garrison | Destroyed 7 combat bots 4030 | -8/Garrison | Discovered new exit (range 8) 4151 | -8/Garrison | Discovered new exit (range 8) 4272 | -8/Garrison | Discovered new exit (range 13) 4303 | -8/Garrison | Installed Relay Interface Framework 4364 | -8/Garrison | Triggered checkpoint 4384 | -8/Garrison | Garrison Relay disabled 4634 | -8/Garrison | Triggered checkpoint 4677 | -8/Garrison | Garrison Relay disabled 4712 | -8/Garrison | Build established: Bothacker-Mutant 4896 | -8/Garrison | Triggered checkpoint 4963 | -8/Garrison | Garrison Relay disabled 5486 | -8/Garrison | Build established: Bothacker-Skirmisher 6737 | -8/Garrison | Build established: Bothacker-Mutant 7229 | -8/Garrison | Entered Factory 7229 | -7/Factory | Evolved 2 slots: Propulsion x2 7231 | -7/Factory | FarCom data flow suspended 8337 | -7/Factory | Discovered new exit (range 12) 8559 | -7/Factory | Discovered new exit (range 14) 8829 | -7/Factory | First assault squad dispatched 8972 | -7/Factory | System corruption reached 10% 9159 | -7/Factory | Discovered new exit (range 5) 9226 | -7/Factory | Lost 3 parts (3n) 9464 | -7/Factory | Identified exit to Lower Caves 9946 | -7/Factory | Core integrity fell below 50% 10235 | -7/Factory | Lost 6 parts (1p5n) 10490 | -7/Factory | Fabricated Arm. Treads? 10861 | -7/Factory | Fabricated Arm. Treads (x2) 11041 | -7/Factory | Core integrity fell below 20% 11287 | -7/Factory | Discovered new exit (range 15) 11694 | -7/Factory | Entered Lower Caves 12532 | -7/Lower Caves | Attracted the attention of an 0b10 checkpoint 12627 | -7/Lower Caves | Encountered a Warlord checkpoint 12627 | -7/Lower Caves | Discovered new exit (range 11) 12644 | -7/Lower Caves | Entered another Lower Caves area 12967 | -7/Lower Caves | Encountered a Warlord checkpoint 13402 | -7/Lower Caves | Spotted 0B-WID(f) 13404 | -7/Lower Caves | Encountered a Master Thief 13407 | -7/Lower Caves | Destroyed 0B-WID(f) 13430 | -7/Lower Caves | Discovered new exit (range 11) 13444 | -7/Lower Caves | Spotted FS-BCX(f) 13446 | -7/Lower Caves | Encountered a Master Thief 13446 | -7/Lower Caves | AWS/Autocannon stolen by Master Thief 13446 | -7/Lower Caves | Destroyed FS-BCX(f) 13461 | -7/Lower Caves | Learned Factory emergency access door positions 13519 | -7/Lower Caves | Entered Zion 13606 | -7/Zion | Discovered new exit (range 14) 13861 | -7/Zion | Entered Proximity Caves 13863 | -6/Proximity Caves | Learned location of 1 exit from Factory 13917 | -6/Proximity Caves | Attracted the attention of an 0b10 outpost 14017 | -6/Proximity Caves | Lost 3 parts (1p2n) 14040 | -6/Proximity Caves | Destroyed by G-67 Veteran with Plasma Rifle Last Messages --------------- 13980_ Arm. Treads destroyed. 13983_ Penetrated by Slug. 13983_ Critical hit. 13983_ Arm. Treads destroyed. 13986_ Mic. Nuclear Core destroyed. 13986_ Penetrated by Slug. 13990_ System corrupted: Energy discharge (-27). 13993_ System corrupted: Adv. Assault Cannon targeting data glitched. 13994_ Penetrated by Slug. 13996_ Y-64 Sentinel destroyed. 13999_ Acquired 42 matter. 14001_ Acquired 13 matter. 14007_ System corrupted: Energy discharge (-26). 14032_ C-30 ARC bursts open, deploying its payload. 14032_ B-48 Gladiator unfolds itself. 14032_ G-50 Soldier unfolds itself. 14032_ B-48 Gladiator unfolds itself. 14032_ System corrupted: Adv. Assault Cannon targeting data glitched. 14038_ B-48 Gladiator destroyed. 14040_ System corrupted: Heat flow error (+155). Map ----- +----------------------------------------------------+ | ?????????????????????????????????????????????????? | | ?????????????????????????????????????????????????? | | ?????????????????????????????????????????????????? | | ?????????????????????????????????????????????????? | | ?????????????????????????????????????????????????? | | ?????????????????????????????????????????????????? | | ?????????????????????????????????????????????????? | | ?????????????????????????????????????????????????? | | ?????????????????????????????????????????????????? | | ?????????????????############????????????????????? | | ?????????????????# #????????????????????? | | ?????????????????# ##% ## #????????????????????? | | ?????????????????# # # #????????????????????? | | ?????????????????# # # #????????????????????? | | ?????????????????# ###++### #????????????????????? | | ####?????????????#%+ + ####?????????????????? | | # #?????????????# # # #?????????????????? | | #####?????###?# #""""""# #?????????????????? | | ####### ### ######## ##?????????????????? | | % "#?????????????????? | | ##?????????????????? | | ########## ### #??????????????????? | | #????????## ##?####??????????????????? | | #?????????## ####?????????????????????? | | #??????????# ### #?????????????????????? | | ##????????# #?# @##?????????????????????? | | ##?????? #?##=b#??????????????????????? | | #???? ??# ;??????????????????????? | | #???# #?# ??????????????????????? | | ##????# ? #?# g ?????????????????????? | | ######?????# ?? #?# g ????????????????????? | | ???????????????? ?## % ????????????????????? | | ??????????????? ??## #???????????????????? | | ??????????????? ???? #???????????????????? | | ????????????????? ????? ???????????????????? | | ?????????????????????????? ???????????????????? | | ?????????????????????????? # ??????????????????? | | ?????????????????????????? ## ??????????????????? | | ??????????????????????????###??#?????????????????? | | ?????????????????????????????????????????????????? | | ?????????????????????????????????????????????????? | | ?????????????????????????????????????????????????? | | ?????????????????????????????????????????????????? | | ?????????????????????????????????????????????????? | | ?????????????????????????????????????????????????? | | ?????????????????????????????????????????????????? | | ?????????????????????????????????????????????????? | | ?????????????????????????????????????????????????? | | ?????????????????????????????????????????????????? | | ?????????????????????????????????????????????????? | +----------------------------------------------------+ Best States ------------- Heat Dissipation 34 Energy Generation 15 Energy Capacity 265 Matter Stores 300 Matter Capacity 300 Sight Range 16 Terrain Scan Range 16 Terrain Scan Density 10 Evasion (%) 40 Recoil Reduction 7 Item Schematics ----------------- Hcp. Storage Unit | -10/Materials | Hacked Arm. Treads | -7/Factory | Hacked Hvy. Pick | -7/Factory | Hacked Robot Schematics ------------------ None Fabricated ------------ Arm. Treads | x2 | -7/Factory Arm. Treads | x2 | -7/Factory Alien Tech Used ----------------- None Achievements -------------- None Challenges ------------ None Game ------ Seed RagnarokInsulationCloak Manual? 0 Play Time 01:12:17 Cumulative 173.6 hours Start 2020.09.02 @ 11:58:35 End 2020.09.02 @ 14:09:06 Sessions 1 Manual Loads 0 Difficulty Rogue Special Mode None Game No. 200 Rogue 200 Adventurer 0 Explorer 0 Win Type - Total 2 Types 2/0/0/0/0/0/0 Lore% 62 Gallery% 73 Achievement% 54 Wizard Run 0 Options --------- ASCII 0 Keyboard 0 Movement Numpad Keybinds 0 Fullscreen 2 Font 24/Smallcaps Map View 76x50 Tactical HUD 1 Map Filters NONE Filters NONE Steam 1 RUN: 9d8d28df-578b-44e1-8fe0-614418cd6479